[Event "*** Qualifier 4: Titled Tuesday 3|2 Blitz"]
[Site "Chess.com"]
[Date "2017.04.25"]
[Round "1"]
[White "Zlatan56"]
[Black "ChristopherYoo"]
[Result "1-0"]
[WhiteElo "2575"]
[BlackElo "2272"]
[TimeControl "180+2"]
[EndTime "13:09:41 PDT"]
[Termination "Zlatan56 won on time"]

1. Nf3 {[%clk 0:03:02]} 1... Nf6 {[%clk 0:03:00.5]} 2. g3 {[%clk 0:03:02.7]}
2... g6 {[%clk 0:02:59.9]} 3. b3 {[%clk 0:03:03]} 3... c5 {[%clk 0:03:00.1]} 4.
Bb2 {[%clk 0:03:03.1]} 4... Bg7 {[%clk 0:03:01.2]} 5. Bg2 {[%clk 0:03:02]} 5...
Nc6 {[%clk 0:03:01.6]} 6. c4 {[%clk 0:03:01]} 6... O-O {[%clk 0:02:58.3]} 7. O-O
{[%clk 0:03:01]} 7... e6 {[%clk 0:02:57.8]} 8. d4 {[%clk 0:03:01.3]} 8... cxd4
{[%clk 0:02:56.9]} 9. Nxd4 {[%clk 0:03:03.2]} 9... d5 {[%clk 0:02:44.5]} 10.
Nxc6 {[%clk 0:02:56.2]} 10... bxc6 {[%clk 0:02:45.4]} 11. Nd2 {[%clk 0:02:57.6]}
11... Qc7 {[%clk 0:02:40.8]} 12. Qc2 {[%clk 0:02:55.5]} 12... Bb7 {[%clk
0:02:31.1]} 13. Rac1 {[%clk 0:02:53.8]} 13... Rfd8 {[%clk 0:02:18.3]} 14. cxd5
{[%clk 0:02:44.5]} 14... exd5 {[%clk 0:02:14.4]} 15. Nf3 {[%clk 0:02:43.1]}
15... Re8 {[%clk 0:02:05.5]} 16. Rfe1 {[%clk 0:02:32.8]} 16... Ne4 {[%clk
0:01:53.2]} 17. Bxg7 {[%clk 0:02:26.8]} 17... Kxg7 {[%clk 0:01:53.8]} 18. Nd2
{[%clk 0:02:14.9]} 18... Nxd2 {[%clk 0:01:28.9]} 19. Qxd2 {[%clk 0:02:16.8]}
19... Qe5 {[%clk 0:01:28.8]} 20. Qc3 {[%clk 0:02:11.8]} 20... Qxc3 {[%clk
0:01:11.4]} 21. Rxc3 {[%clk 0:02:13.7]} 21... Re5 {[%clk 0:01:11.5]} 22. Bf3
{[%clk 0:02:08.8]} 22... Rae8 {[%clk 0:01:11.2]} 23. Rc5 {[%clk 0:01:36.6]}
23... Kf8 {[%clk 0:00:55.7]} 24. Ra5 {[%clk 0:01:24.2]} 24... a6 {[%clk
0:00:52]} 25. Rc1 {[%clk 0:01:19]} 25... Ke7 {[%clk 0:00:51.8]} 26. e3 {[%clk
0:01:18.5]} 26... Kd6 {[%clk 0:00:52.1]} 27. Kg2 {[%clk 0:01:13.8]} 27... R8e6
{[%clk 0:00:32.3]} 28. h4 {[%clk 0:01:07.2]} 28... Re7 {[%clk 0:00:30.2]} 29. b4
{[%clk 0:01:06.1]} 29... f5 {[%clk 0:00:28.6]} 30. Rd1 {[%clk 0:01:00.8]} 30...
Kc7 {[%clk 0:00:26.5]} 31. Be2 {[%clk 0:00:58.5]} 31... Kb6 {[%clk 0:00:24.7]}
32. Bf3 {[%clk 0:00:55]} 32... R5e6 {[%clk 0:00:22.5]} 33. Rc5 {[%clk
0:00:55.2]} 33... Re5 {[%clk 0:00:21.8]} 34. a4 {[%clk 0:00:55.8]} 34... Kc7
{[%clk 0:00:21.4]} 35. Rdxd5 {[%clk 0:00:51.2]} 35... Rxd5 {[%clk 0:00:19.1]}
36. Bxd5 {[%clk 0:00:53.1]} 36... Kd6 {[%clk 0:00:19.8]} 37. Bf3 {[%clk
0:00:45.1]} 37... Rd7 {[%clk 0:00:20.9]} 38. Rc4 {[%clk 0:00:37.2]} 38... Rc7
{[%clk 0:00:19.9]} 39. e4 {[%clk 0:00:24]} 39... fxe4 {[%clk 0:00:20.2]} 40.
Bxe4 {[%clk 0:00:24.6]} 40... Bc8 {[%clk 0:00:19.4]} 41. f3 {[%clk 0:00:18.9]}
41... Be6 {[%clk 0:00:19.8]} 42. Rc5 {[%clk 0:00:17.5]} 42... Bb3 {[%clk
0:00:18.7]} 43. Ra5 {[%clk 0:00:16.4]} 43... Bc4 {[%clk 0:00:18.8]} 44. Rc5
{[%clk 0:00:15.4]} 44... Bb3 {[%clk 0:00:19.6]} 45. a5 {[%clk 0:00:14.3]} 45...
Ba4 {[%clk 0:00:18]} 46. Bd3 {[%clk 0:00:15.3]} 46... Ra7 {[%clk 0:00:14.3]} 47.
f4 {[%clk 0:00:14.7]} 47... Bb3 {[%clk 0:00:12]} 48. Be4 {[%clk 0:00:12.4]}
48... Bd5 {[%clk 0:00:11.4]} 49. Bxd5 {[%clk 0:00:09.8]} 49... cxd5 {[%clk
0:00:02.6]} 50. Rc8 {[%clk 0:00:10.8]} 1-0

[Event "*** Qualifier 4: Titled Tuesday 3|2 Blitz"]
[Site "Chess.com"]
[Date "2017.04.25"]
[Round "1"]
[White "Rating-Schmating"]
[Black "Oneofmyturns"]
[Result "0-1"]
[WhiteElo "2210"]
[BlackElo "2512"]
[TimeControl "180+2"]
[EndTime "13:09:50 PDT"]
[Termination "Oneofmyturns won by checkmate"]

1. e4 {[%clk 0:02:55.1]} 1... c5 {[%clk 0:02:59.3]} 2. Nf3 {[%clk 0:02:55.7]}
2... e6 {[%clk 0:03:00.2]} 3. d4 {[%clk 0:02:57]} 3... cxd4 {[%clk 0:03:02.1]}
4. Nxd4 {[%clk 0:02:58.8]} 4... a6 {[%clk 0:03:03.4]} 5. c4 {[%clk 0:03:00.1]}
5... Qc7 {[%clk 0:03:03.2]} 6. Nc3 {[%clk 0:03:01.1]} 6... Nf6 {[%clk
0:02:58.2]} 7. Bd3 {[%clk 0:03:01.9]} 7... Bc5 {[%clk 0:02:56.6]} 8. Be3 {[%clk
0:03:02.1]} 8... b6 {[%clk 0:02:49.9]} 9. O-O {[%clk 0:03:01.9]} 9... Bb7 {[%clk
0:02:51.1]} 10. Qe2 {[%clk 0:03:00.9]} 10... O-O {[%clk 0:02:51.1]} 11. b3
{[%clk 0:03:00.5]} 11... Rd8 {[%clk 0:02:50.1]} 12. Rac1 {[%clk 0:03:01.6]}
12... Nc6 {[%clk 0:02:28.6]} 13. Nxc6 {[%clk 0:03:01.5]} 13... Qxc6 {[%clk
0:02:29.2]} 14. f3 {[%clk 0:02:59.8]} 14... Rac8 {[%clk 0:02:24.2]} 15. Rfd1
{[%clk 0:03:00.7]} 15... Ba3 {[%clk 0:02:18.9]} 16. Rc2 {[%clk 0:02:59.2]} 16...
d6 {[%clk 0:02:16]} 17. Qf2 {[%clk 0:03:00.4]} 17... Nd7 {[%clk 0:02:16.5]} 18.
Na4 {[%clk 0:03:00.3]} 18... Bc5 {[%clk 0:02:12.8]} 19. Nxc5 {[%clk 0:03:01.5]}
19... dxc5 {[%clk 0:02:08.7]} 20. Rcd2 {[%clk 0:03:00.1]} 20... Qc7 {[%clk
0:01:59.2]} 21. f4 {[%clk 0:02:58.3]} 21... Nb8 {[%clk 0:01:59.5]} 22. e5 {[%clk
0:02:56]} 22... g6 {[%clk 0:02:00.3]} 23. Be2 {[%clk 0:02:56.7]} 23... Nc6
{[%clk 0:01:52.9]} 24. Rd6 {[%clk 0:02:55]} 24... Ne7 {[%clk 0:01:53.1]} 25. Qh4
{[%clk 0:02:54.2]} 25... Nc6 {[%clk 0:01:34.1]} 26. Qf6 {[%clk 0:02:53.1]} 26...
Rxd6 {[%clk 0:01:30.1]} 27. exd6 {[%clk 0:02:48.5]} 27... Qd8 {[%clk 0:01:28.2]}
28. Qc3 {[%clk 0:02:45]} 28... Qf8 {[%clk 0:01:26.7]} 29. Bf3 {[%clk 0:02:44.5]}
29... Rd8 {[%clk 0:01:26.7]} 30. a3 {[%clk 0:02:38.7]} 30... Rxd6 {[%clk
0:01:27]} 31. Rxd6 {[%clk 0:02:36.6]} 31... Qxd6 {[%clk 0:01:28.9]} 32. Bxc6
{[%clk 0:02:28.3]} 32... Qxc6 {[%clk 0:01:17.7]} 33. Qd2 {[%clk 0:02:25.6]}
33... Qe4 {[%clk 0:01:19.1]} 34. b4 {[%clk 0:02:21.9]} 34... Qxc4 {[%clk
0:01:13.2]} 35. Qd8+ {[%clk 0:02:18.4]} 35... Kg7 {[%clk 0:01:14]} 36. Qxb6
{[%clk 0:02:18]} 36... Qe4 {[%clk 0:01:13.2]} 37. Kf2 {[%clk 0:02:09.8]} 37...
Qxg2+ {[%clk 0:01:06.1]} 38. Ke1 {[%clk 0:02:09.6]} 38... Bf3 {[%clk 0:01:03]}
39. Qxa6 {[%clk 0:02:07.5]} 39... cxb4 {[%clk 0:00:50.3]} 40. axb4 {[%clk
0:02:06.1]} 40... Qxh2 {[%clk 0:00:51.6]} 41. Bd4+ {[%clk 0:02:06.1]} 41... Kh6
{[%clk 0:00:51.3]} 42. Qd3 {[%clk 0:01:59.7]} 42... Qh1+ {[%clk 0:00:47.2]} 43.
Kf2 {[%clk 0:01:55.9]} 43... Qg2+ {[%clk 0:00:47.5]} 44. Ke3 {[%clk 0:01:56.3]}
44... Bg4 {[%clk 0:00:46.4]} 45. Be5 {[%clk 0:01:45.1]} 45... Bf5 {[%clk
0:00:37.6]} 46. Qd8 {[%clk 0:01:38.6]} 46... Kh5 {[%clk 0:00:32.6]} 47. b5
{[%clk 0:01:35.6]} 47... h6 {[%clk 0:00:26.4]} 48. b6 {[%clk 0:01:34.4]} 48...
Qg3+ {[%clk 0:00:27.9]} 49. Kd2 {[%clk 0:01:33.9]} 49... Qf2+ {[%clk 0:00:28.3]}
50. Kc3 {[%clk 0:01:32.8]} 50... Qc2+ {[%clk 0:00:29]} 51. Kb4 {[%clk
0:01:34.1]} 51... Bd3 {[%clk 0:00:21.3]} 52. Qc7 {[%clk 0:01:29.4]} 52... Qxc7
{[%clk 0:00:19]} 53. bxc7 {[%clk 0:01:20.2]} 53... Ba6 {[%clk 0:00:20.9]} 54.
Bf6 {[%clk 0:01:12.4]} 54... Kg4 {[%clk 0:00:21.2]} 55. Be5 {[%clk 0:01:10.6]}
55... h5 {[%clk 0:00:22.2]} 56. Kc3 {[%clk 0:01:07.6]} 56... Kf3 {[%clk
0:00:21.5]} 57. Kd2 {[%clk 0:01:07.7]} 57... h4 {[%clk 0:00:21.7]} 58. Ke1
{[%clk 0:01:05.7]} 58... h3 {[%clk 0:00:23.2]} 59. f5 {[%clk 0:01:07.1]} 59...
exf5 {[%clk 0:00:23.5]} 60. Bd6 {[%clk 0:01:06.3]} 60... f4 {[%clk 0:00:24.5]}
61. Bxf4 {[%clk 0:01:00.9]} 61... Kxf4 {[%clk 0:00:26.4]} 62. Kf2 {[%clk
0:01:01.9]} 62... g5 {[%clk 0:00:27.7]} 63. Kg1 {[%clk 0:01:02.7]} 63... g4
{[%clk 0:00:29.1]} 64. c8=Q {[%clk 0:01:04.2]} 64... Bxc8 {[%clk 0:00:29.8]} 65.
Kh2 {[%clk 0:01:04.5]} 65... g3+ {[%clk 0:00:31]} 66. Kh1 {[%clk 0:01:05.6]}
66... h2 {[%clk 0:00:22]} 67. Kg2 {[%clk 0:01:06.7]} 67... Bb7+ {[%clk
0:00:21.5]} 68. Kh3 {[%clk 0:01:04.4]} 68... h1=Q# {[%clk 0:00:21.7]} 0-1

[Event "*** Qualifier 4: Titled Tuesday 3|2 Blitz"]
[Site "Chess.com"]
[Date "2017.04.25"]
[Round "1"]
[White "jcibarra"]
[Black "Goala"]
[Result "1/2-1/2"]
[WhiteElo "2675"]
[BlackElo "2347"]
[TimeControl "180+2"]
[EndTime "13:09:52 PDT"]
[Termination "Game drawn by repetition"]

1. e4 {[%clk 0:02:59]} 1... e6 {[%clk 0:02:57.6]} 2. d4 {[%clk 0:02:58.9]} 2...
d5 {[%clk 0:02:59]} 3. Bd3 {[%clk 0:02:58.3]} 3... dxe4 {[%clk 0:02:53.1]} 4.
Bxe4 {[%clk 0:02:57.9]} 4... Nf6 {[%clk 0:02:54.5]} 5. Bf3 {[%clk 0:02:58.9]}
5... c5 {[%clk 0:02:54.3]} 6. Ne2 {[%clk 0:02:59.4]} 6... Nc6 {[%clk 0:02:51.7]}
7. Be3 {[%clk 0:02:59.4]} 7... cxd4 {[%clk 0:02:52.4]} 8. Nxd4 {[%clk
0:03:00.2]} 8... Ne5 {[%clk 0:02:53]} 9. Nc3 {[%clk 0:02:59.7]} 9... Be7 {[%clk
0:02:47.9]} 10. Qe2 {[%clk 0:02:58]} 10... O-O {[%clk 0:02:42.5]} 11. O-O-O
{[%clk 0:02:56.8]} 11... Qa5 {[%clk 0:02:40.7]} 12. Nb3 {[%clk 0:02:55.8]} 12...
Qb4 {[%clk 0:01:47.2]} 13. Rd4 {[%clk 0:02:49.5]} 13... Qb6 {[%clk 0:01:37.7]}
14. Rd7 {[%clk 0:02:49.9]} 14... Qb4 {[%clk 0:01:28.8]} 15. Rxe7 {[%clk
0:02:21.4]} 15... Nxf3 {[%clk 0:01:21.3]} 16. Bc5 {[%clk 0:02:21.9]} 16... Qf4+
{[%clk 0:01:17]} 17. Be3 {[%clk 0:02:19.7]} 17... Qd6 {[%clk 0:01:15.7]} 18. Bc5
{[%clk 0:02:18.4]} 18... Qf4+ {[%clk 0:01:16.7]} 19. Kb1 {[%clk 0:02:15.6]}
19... Nh4 {[%clk 0:01:06.1]} 20. g3 {[%clk 0:01:53.1]} 20... Qf3 {[%clk
0:01:01.9]} 21. Qxf3 {[%clk 0:01:54.2]} 21... Nxf3 {[%clk 0:01:03.8]} 22. Rd1
{[%clk 0:01:38.1]} 22... Nxh2 {[%clk 0:00:58.7]} 23. Nb5 {[%clk 0:01:32.6]}
23... Nd5 {[%clk 0:00:48]} 24. Nc7 {[%clk 0:00:56.9]} 24... Nxc7 {[%clk
0:00:48.8]} 25. Rxc7 {[%clk 0:00:58.8]} 25... Re8 {[%clk 0:00:48.8]} 26. Re7
{[%clk 0:00:59.2]} 26... Rf8 {[%clk 0:00:44.8]} 27. Rc7 {[%clk 0:00:54]} 27...
Re8 {[%clk 0:00:44.6]} 28. Be7 {[%clk 0:00:45.4]} 28... b6 {[%clk 0:00:38.9]}
29. Nd4 {[%clk 0:00:45.4]} 29... Ba6 {[%clk 0:00:35.9]} 30. Nc6 {[%clk
0:00:45.8]} 30... Ng4 {[%clk 0:00:25.3]} 31. f4 {[%clk 0:00:42.9]} 31... h6
{[%clk 0:00:23.5]} 32. Bb4 {[%clk 0:00:41.6]} 32... Rac8 {[%clk 0:00:15.4]} 33.
Ne7+ {[%clk 0:00:42.2]} 33... Kh7 {[%clk 0:00:11.8]} 34. Nxc8 {[%clk 0:00:42.7]}
34... Bxc8 {[%clk 0:00:12.9]} 35. Rxf7 {[%clk 0:00:42.7]} 35... e5 {[%clk
0:00:13]} 36. Bc3 {[%clk 0:00:42]} 36... Be6 {[%clk 0:00:12.3]} 37. Rxa7 {[%clk
0:00:39.1]} 37... Kg6 {[%clk 0:00:13]} 38. b3 {[%clk 0:00:40]} 38... Kf5 {[%clk
0:00:13]} 39. fxe5 {[%clk 0:00:40.1]} 39... g5 {[%clk 0:00:13.5]} 40. Rf1+
{[%clk 0:00:41.3]} 40... Ke4 {[%clk 0:00:14.2]} 41. Kb2 {[%clk 0:00:41.1]} 41...
h5 {[%clk 0:00:15.2]} 42. Rb7 {[%clk 0:00:41.3]} 42... h4 {[%clk 0:00:15.4]} 43.
gxh4 {[%clk 0:00:42.1]} 43... gxh4 {[%clk 0:00:17.3]} 44. Rxb6 {[%clk
0:00:43.6]} 44... h3 {[%clk 0:00:18.1]} 45. Rb4+ {[%clk 0:00:45.2]} 45... Ke3
{[%clk 0:00:17.7]} 46. Rff4 {[%clk 0:00:39]} 46... Nf2 {[%clk 0:00:14.2]} 47.
Bd2+ {[%clk 0:00:37.7]} 47... Ke2 {[%clk 0:00:15.1]} 48. Rxf2+ {[%clk
0:00:39.6]} 48... Kxf2 {[%clk 0:00:16.3]} 49. Bf4 {[%clk 0:00:40.1]} 49... Rf8
{[%clk 0:00:14.2]} 50. Rd4 {[%clk 0:00:40.1]} 50... Kf3 {[%clk 0:00:14.9]} 51.
Bh2 {[%clk 0:00:40.2]} 51... Kg2 {[%clk 0:00:14.6]} 52. Rd2+ {[%clk 0:00:40.4]}
52... Rf2 {[%clk 0:00:16.1]} 53. Rxf2+ {[%clk 0:00:28.5]} 53... Kxf2 {[%clk
0:00:18]} 54. a4 {[%clk 0:00:17.5]} 54... Kg2 {[%clk 0:00:18.4]} 55. Bf4 {[%clk
0:00:18.7]} 55... Kf3 {[%clk 0:00:19.5]} 56. Bh2 {[%clk 0:00:19.7]} 56... Kg2
{[%clk 0:00:20.5]} 57. Bf4 {[%clk 0:00:20.8]} 57... Kf3 {[%clk 0:00:21.4]} 58.
Bh2 {[%clk 0:00:21.9]} 58... Kg2 {[%clk 0:00:22.6]} 59. Bf4 {[%clk 0:00:22.8]}
59... Kf3 {[%clk 0:00:23.6]} 1/2-1/2

[Event "*** Qualifier 4: Titled Tuesday 3|2 Blitz"]
[Site "Chess.com"]
[Date "2017.04.25"]
[Round "1"]
[White "ehrenfeld"]
[Black "LyonBeast"]
[Result "0-1"]
[WhiteElo "2374"]
[BlackElo "2762"]
[TimeControl "180+2"]
[EndTime "13:10:01 PDT"]
[Termination "LyonBeast won on time"]

1. e4 {[%clk 0:03:02]} 1... c5 {[%clk 0:02:58.9]} 2. Nf3 {[%clk 0:03:02]} 2...
d6 {[%clk 0:02:58.2]} 3. Bc4 {[%clk 0:03:02.3]} 3... Nf6 {[%clk 0:02:55.1]} 4.
d3 {[%clk 0:03:02.5]} 4... g6 {[%clk 0:02:54.7]} 5. O-O {[%clk 0:03:00.4]} 5...
Bg7 {[%clk 0:02:54.7]} 6. Bb3 {[%clk 0:02:55.9]} 6... O-O {[%clk 0:02:52.4]} 7.
c3 {[%clk 0:02:56.4]} 7... Nc6 {[%clk 0:02:43.1]} 8. Re1 {[%clk 0:02:56.8]} 8...
Bg4 {[%clk 0:02:38.5]} 9. h3 {[%clk 0:02:53.3]} 9... Bxf3 {[%clk 0:02:38.4]} 10.
Qxf3 {[%clk 0:02:54.3]} 10... b5 {[%clk 0:02:37.5]} 11. Bg5 {[%clk 0:02:44.3]}
11... Rc8 {[%clk 0:02:24.9]} 12. Nd2 {[%clk 0:02:44.2]} 12... Nd7 {[%clk
0:02:24.3]} 13. Rac1 {[%clk 0:02:30.1]} 13... a5 {[%clk 0:02:22]} 14. a3 {[%clk
0:02:21.4]} 14... h6 {[%clk 0:02:17.9]} 15. Bf4 {[%clk 0:02:12.6]} 15... Kh7
{[%clk 0:02:05.9]} 16. Qe2 {[%clk 0:02:12.2]} 16... e5 {[%clk 0:02:03.9]} 17.
Be3 {[%clk 0:02:11.3]} 17... f5 {[%clk 0:02:04.6]} 18. exf5 {[%clk 0:02:10.1]}
18... gxf5 {[%clk 0:02:03.6]} 19. f4 {[%clk 0:02:07]} 19... Qf6 {[%clk
0:01:52.8]} 20. Nf3 {[%clk 0:02:06.2]} 20... Rce8 {[%clk 0:01:52.1]} 21. Qf2
{[%clk 0:02:05]} 21... e4 {[%clk 0:01:42.4]} 22. Bd5 {[%clk 0:01:37.8]} 22...
Ne7 {[%clk 0:01:29.2]} 23. dxe4 {[%clk 0:01:36.8]} 23... Nxd5 {[%clk 0:01:30.5]}
24. exd5 {[%clk 0:01:37.3]} 24... Nb6 {[%clk 0:01:32.1]} 25. Qd2 {[%clk
0:01:33.3]} 25... Qf7 {[%clk 0:01:32.1]} 26. Qd3 {[%clk 0:01:29]} 26... Nxd5
{[%clk 0:01:27.1]} 27. Bd2 {[%clk 0:01:25.7]} 27... c4 {[%clk 0:01:25.5]} 28.
Qc2 {[%clk 0:01:24.3]} 28... Kg8 {[%clk 0:00:56.9]} 29. a4 {[%clk 0:01:23.9]}
29... Rxe1+ {[%clk 0:00:50.6]} 30. Rxe1 {[%clk 0:01:24.2]} 30... b4 {[%clk
0:00:51.3]} 31. cxb4 {[%clk 0:01:20.3]} 31... Nxb4 {[%clk 0:00:53.2]} 32. Bxb4
{[%clk 0:00:56.9]} 32... axb4 {[%clk 0:00:55.1]} 33. Rc1 {[%clk 0:00:29.5]}
33... d5 {[%clk 0:00:41]} 34. Ne5 {[%clk 0:00:24.6]} 34... b3 {[%clk 0:00:36]}
35. Qd2 {[%clk 0:00:24.2]} 35... Qe6 {[%clk 0:00:34.4]} 36. Rd1 {[%clk
0:00:23.6]} 36... Rb8 {[%clk 0:00:31.7]} 37. a5 {[%clk 0:00:16.5]} 37... Bf8
{[%clk 0:00:26.1]} 38. a6 {[%clk 0:00:10]} 38... Bc5+ {[%clk 0:00:26.2]} 39. Kh2
{[%clk 0:00:11.2]} 39... Ra8 {[%clk 0:00:22.3]} 40. Qxd5 {[%clk 0:00:11.3]}
40... Qxd5 {[%clk 0:00:22.7]} 41. Rxd5 {[%clk 0:00:12.1]} 41... c3 {[%clk
0:00:24.3]} 42. bxc3 {[%clk 0:00:12.5]} 42... b2 {[%clk 0:00:21.8]} 43. Rd1
{[%clk 0:00:13.2]} 43... Rxa6 {[%clk 0:00:21.4]} 44. Rb1 {[%clk 0:00:13.7]}
44... Be3 {[%clk 0:00:19.2]} 45. Nd3 {[%clk 0:00:12.3]} 45... Rd6 {[%clk
0:00:20.3]} 46. Nxb2 {[%clk 0:00:11.5]} 46... Rb6 {[%clk 0:00:21.9]} 47. Re1
{[%clk 0:00:11]} 47... Bxf4+ {[%clk 0:00:22.9]} 48. Kh1 {[%clk 0:00:10.9]} 48...
Rxb2 {[%clk 0:00:24.5]} 49. Rf1 {[%clk 0:00:12]} 49... Bg3 {[%clk 0:00:25.6]}
50. Rc1 {[%clk 0:00:11.7]} 50... Kf7 {[%clk 0:00:26]} 51. c4 {[%clk 0:00:12.7]}
51... Ke6 {[%clk 0:00:26.4]} 52. c5 {[%clk 0:00:13.8]} 52... Kd7 {[%clk
0:00:26.7]} 53. c6+ {[%clk 0:00:12.3]} 53... Kc7 {[%clk 0:00:27.9]} 54. Kg1
{[%clk 0:00:13.5]} 54... Re2 {[%clk 0:00:28.9]} 55. Kf1 {[%clk 0:00:13.7]} 55...
Re4 {[%clk 0:00:30.4]} 56. Kg1 {[%clk 0:00:11.9]} 56... h5 {[%clk 0:00:31.2]}
57. Kf1 {[%clk 0:00:12.7]} 57... h4 {[%clk 0:00:32.7]} 58. Kg1 {[%clk
0:00:13.7]} 58... Re1+ {[%clk 0:00:33.6]} 59. Rxe1 {[%clk 0:00:13.5]} 59... Bxe1
{[%clk 0:00:35.5]} 60. Kf1 {[%clk 0:00:14.1]} 60... Bg3 {[%clk 0:00:36.5]} 0-1

[Event "*** Qualifier 4: Titled Tuesday 3|2 Blitz"]
[Site "Chess.com"]
[Date "2017.04.25"]
[Round "1"]
[White "pastouche06"]
[Black "OparinGrigoriy"]
[Result "1-0"]
[WhiteElo "2308"]
[BlackElo "2591"]
[TimeControl "180+2"]
[EndTime "13:10:02 PDT"]
[Termination "pastouche06 won by resignation"]

1. c4 {[%clk 0:03:01.3]} 1... e6 {[%clk 0:02:52]} 2. Nc3 {[%clk 0:03:00.7]} 2...
Nf6 {[%clk 0:02:53.2]} 3. d4 {[%clk 0:03:00.1]} 3... Bb4 {[%clk 0:02:52.3]} 4.
Qc2 {[%clk 0:02:58.5]} 4... O-O {[%clk 0:02:52.7]} 5. a3 {[%clk 0:02:59.2]} 5...
Bxc3+ {[%clk 0:02:53.9]} 6. Qxc3 {[%clk 0:03:01.1]} 6... Qe8 {[%clk 0:02:54]} 7.
Nf3 {[%clk 0:02:53.8]} 7... b6 {[%clk 0:02:55.3]} 8. g3 {[%clk 0:02:51.1]} 8...
Bb7 {[%clk 0:02:56.8]} 9. Bg2 {[%clk 0:02:52.2]} 9... d6 {[%clk 0:02:58.5]} 10.
O-O {[%clk 0:02:52.4]} 10... Nbd7 {[%clk 0:03:00.2]} 11. Nd2 {[%clk 0:02:32.7]}
11... a5 {[%clk 0:03:00.4]} 12. Bxb7 {[%clk 0:02:31.7]} 12... Ra7 {[%clk
0:03:01.2]} 13. Bg2 {[%clk 0:02:30.6]} 13... e5 {[%clk 0:02:59.6]} 14. d5 {[%clk
0:02:25.9]} 14... a4 {[%clk 0:03:00.9]} 15. Nf3 {[%clk 0:02:11.2]} 15... Nc5
{[%clk 0:03:00.9]} 16. Be3 {[%clk 0:02:10.6]} 16... Nfd7 {[%clk 0:03:01.9]} 17.
Nd2 {[%clk 0:02:09.1]} 17... f5 {[%clk 0:03:02.3]} 18. Bxc5 {[%clk 0:02:08.2]}
18... Nxc5 {[%clk 0:03:03.2]} 19. e4 {[%clk 0:01:54.1]} 19... f4 {[%clk
0:03:03.8]} 20. f3 {[%clk 0:01:44.6]} 20... Qg6 {[%clk 0:03:03.9]} 21. g4 {[%clk
0:01:44.8]} 21... h5 {[%clk 0:03:02.8]} 22. h3 {[%clk 0:01:45.6]} 22... Qg5
{[%clk 0:03:04.3]} 23. b4 {[%clk 0:01:39.8]} 23... axb3 {[%clk 0:03:05.3]} 24.
Nxb3 {[%clk 0:01:40.9]} 24... Nxb3 {[%clk 0:02:56.2]} 25. Qxb3 {[%clk
0:01:42.8]} 25... Rfa8 {[%clk 0:02:57.4]} 26. a4 {[%clk 0:01:31.4]} 26... Ra5
{[%clk 0:02:58.1]} 27. Qb4 {[%clk 0:01:28.7]} 27... Qh4 {[%clk 0:02:57.7]} 28.
Qe1 {[%clk 0:01:20.5]} 28... Qe7 {[%clk 0:02:56.7]} 29. Qb4 {[%clk 0:01:17.9]}
29... Qh4 {[%clk 0:02:57.6]} 30. Ra2 {[%clk 0:01:12.4]} 30... g6 {[%clk
0:02:56.2]} 31. Rfa1 {[%clk 0:01:12.7]} 31... Kg7 {[%clk 0:02:57.2]} 32. Qe1
{[%clk 0:01:12.9]} 32... Qg5 {[%clk 0:02:56.9]} 33. h4 {[%clk 0:01:12.8]} 33...
Qh6 {[%clk 0:02:58.3]} 34. g5 {[%clk 0:01:14]} 34... Qh8 {[%clk 0:02:59.3]} 35.
Bf1 {[%clk 0:01:15.1]} 35... Qe8 {[%clk 0:02:58.3]} 36. Qd1 {[%clk 0:01:14.4]}
36... Qd7 {[%clk 0:02:57.4]} 37. Kh2 {[%clk 0:01:14.3]} 37... Rc5 {[%clk
0:02:57.3]} 38. Qb3 {[%clk 0:01:08]} 38... Raa5 {[%clk 0:02:57.9]} 39. Bd3
{[%clk 0:01:03.8]} 39... Qe8 {[%clk 0:02:58.9]} 40. Qd1 {[%clk 0:01:02.2]} 40...
Qa8 {[%clk 0:03:00.3]} 41. Qf1 {[%clk 0:01:02]} 41... Qc8 {[%clk 0:02:55.8]} 42.
Qh3 {[%clk 0:01:02.4]} 42... Qxh3+ {[%clk 0:02:56.4]} 43. Kxh3 {[%clk
0:01:04.3]} 43... Kf7 {[%clk 0:02:58.1]} 44. Kg2 {[%clk 0:01:05.4]} 44... Ke7
{[%clk 0:03:00]} 45. Kf2 {[%clk 0:01:06.8]} 45... Kf7 {[%clk 0:03:00.6]} 46. Ke2
{[%clk 0:01:08.3]} 46... Ke7 {[%clk 0:03:02.5]} 47. Kd2 {[%clk 0:01:08.4]} 47...
Kf7 {[%clk 0:03:03.8]} 48. Rb1 {[%clk 0:01:04.2]} 48... Ke7 {[%clk 0:03:05.7]}
49. Rb4 {[%clk 0:01:04.7]} 49... Kf7 {[%clk 0:03:06.2]} 50. Rb5 {[%clk
0:01:03.3]} 50... Ke7 {[%clk 0:03:07.1]} 51. Rxc5 {[%clk 0:01:02.6]} 51... dxc5
{[%clk 0:03:08.4]} 52. Kc2 {[%clk 0:00:59.6]} 52... Kd6 {[%clk 0:03:09.3]} 53.
Kb3 {[%clk 0:00:59.4]} 53... Ke7 {[%clk 0:03:10.8]} 54. Rb2 {[%clk 0:01:00.8]}
54... Kd6 {[%clk 0:03:12.1]} 55. Ka3 {[%clk 0:01:02.3]} 55... Ke7 {[%clk
0:03:13.3]} 56. Rb5 {[%clk 0:01:03.3]} 56... Kd6 {[%clk 0:03:14.8]} 57. Bf1
{[%clk 0:00:56.2]} 57... Ke7 {[%clk 0:03:15.9]} 58. Bh3 {[%clk 0:00:57.3]} 58...
Kd6 {[%clk 0:03:10.8]} 59. Be6 {[%clk 0:00:56.2]} 59... Ke7 {[%clk 0:03:12.3]}
60. Rb1 {[%clk 0:00:41.7]} 60... Ra7 {[%clk 0:03:10.8]} 61. Kb3 {[%clk
0:00:34.5]} 61... Ra5 {[%clk 0:03:11.9]} 62. Ka3 {[%clk 0:00:27.3]} 62... Ra7
{[%clk 0:03:12.5]} 63. a5 {[%clk 0:00:25]} 63... Rxa5+ {[%clk 0:03:13.8]} 64.
Kb2 {[%clk 0:00:26.1]} 64... Ra4 {[%clk 0:03:15.2]} 65. Ra1 {[%clk 0:00:24.3]}
65... Rxc4 {[%clk 0:03:16]} 66. Ra8 {[%clk 0:00:21.7]} 66... b5 {[%clk
0:03:15.2]} 67. Rc8 {[%clk 0:00:20.8]} 67... Rb4+ {[%clk 0:03:16.1]} 68. Kc3
{[%clk 0:00:21.7]} 68... Rc4+ {[%clk 0:03:17.6]} 69. Kd3 {[%clk 0:00:22.4]}
69... Rd4+ {[%clk 0:03:13.8]} 70. Ke2 {[%clk 0:00:23.4]} 70... c4 {[%clk
0:03:15.3]} 71. Rxc7+ {[%clk 0:00:23.5]} 71... Kd6 {[%clk 0:03:15.4]} 72. Rc6+
{[%clk 0:00:24.4]} 72... Ke7 {[%clk 0:03:16.9]} 73. Rb6 {[%clk 0:00:25.2]} 73...
c3 {[%clk 0:03:14.9]} 74. Rxb5 {[%clk 0:00:25.6]} 74... Rd2+ {[%clk 0:03:16.1]}
75. Ke1 {[%clk 0:00:26.8]} 75... Rh2 {[%clk 0:03:13.2]} 76. Kd1 {[%clk
0:00:18.8]} 76... Kd6 {[%clk 0:03:14.5]} 77. Rb6+ {[%clk 0:00:17.4]} 77... Kc5
{[%clk 0:03:15.5]} 78. Rc6+ {[%clk 0:00:18.8]} 78... Kd4 {[%clk 0:03:14.4]} 79.
d6 {[%clk 0:00:20.2]} 79... Rh1+ {[%clk 0:03:03.7]} 80. Kc2 {[%clk 0:00:20.7]}
80... Rh2+ {[%clk 0:03:05.4]} 81. Kc1 {[%clk 0:00:20.4]} 81... Rh1+ {[%clk
0:03:06.6]} 82. Kc2 {[%clk 0:00:21.9]} 82... Rh2+ {[%clk 0:03:08.5]} 83. Kb3
{[%clk 0:00:23.2]} 83... Rb2+ {[%clk 0:03:09.4]} 84. Ka3 {[%clk 0:00:24.7]}
84... Rb8 {[%clk 0:02:55.3]} 85. Rc8 {[%clk 0:00:22.8]} 85... Rxc8 {[%clk
0:02:38.2]} 86. Bxc8 {[%clk 0:00:24.7]} 86... Ke3 {[%clk 0:02:39.9]} 87. d7
{[%clk 0:00:24.1]} 87... c2 {[%clk 0:02:40.4]} 88. Kb2 {[%clk 0:00:25]} 88...
Kd2 {[%clk 0:02:41.9]} 1-0